lending/lending_fUSD_20241120
["ID","MTS","AMOUNT","RATE_DAILY","PERIOD"]
[342738059,1732090325467,-1140.86,0.00057808,120]
[342738060,1732090325475,-1206.39,0.00057808,120]
[342738061,1732090325485,-500.0,0.00057808,120]
[342738062,1732090325494,-851.18,0.00057808,120]
[342738063,1732090325503,-811.24,0.00057808,21]
[342738064,1732090325512,-370.93599685,0.00057808,120]
[342738065,1732090325522,-500.0,0.00057808,120]
[342738066,1732090325530,-500.0,0.00057808,120]
[342738067,1732090325541,-500.0,0.00057808,120]
[342738068,1732090325550,-500.0,0.00057808,120]
[342738069,1732090325559,-500.0,0.00057808,120]
[342738070,1732090325568,-500.0,0.00057808,120]
[342738071,1732090325579,-500.0,0.00057808,120]
[342738072,1732090325590,-1177.91,0.00057808,120]
[342738073,1732090325599,-500.0,0.00057808,120]
[342738074,1732090325608,-3911.81,0.00057808,120]
[342738075,1732090325618,-7513.0,0.00057808,3]
[342738076,1732090325627,-500.0,0.00057808,120]
[342738077,1732090325636,-810.73,0.00057808,120]
[342738078,1732090325646,-500.0,0.00057808,120]
[342738079,1732090325655,-618.5,0.00057808,120]
[342738080,1732090325665,-500.0,0.00057808,120]
[342738081,1732090325675,-570.66,0.00057808,120]
[342738082,1732090325686,-424.15,0.00057808,120]
[342738083,1732090325696,-500.0,0.00057808,120]
[342738084,1732090325706,-500.0,0.00057808,21]
[342738085,1732090325715,-192.12,0.00057808,120]
[342738086,1732090325724,-531.91,0.00057808,60]
[342738087,1732090325734,-703.55,0.00057808,120]
[342738088,1732090325743,-319.52,0.00057808,120]
[342738089,1732090325753,-578.53,0.00057808,120]
[342738090,1732090325763,-500.0,0.00057808,120]
[342738091,1732090325772,-500.0,0.00057808,120]
[342738092,1732090325782,-500.0,0.00057808,120]
[342738093,1732090325792,-1133.36,0.00057808,120]
[342738094,1732090325801,-500.0,0.00057808,120]
[342738095,1732090325810,-500.0,0.00057808,120]
[342738096,1732090325819,-646.34,0.00057808,7]
[342738097,1732090325829,-500.0,0.00057808,120]
[342738098,1732090325838,-500.0,0.00057808,120]
[342738099,1732090325848,-500.0,0.00057808,120]
[342738100,1732090325858,-1092.33,0.00057808,120]
[342738101,1732090325867,-576.16,0.00057808,120]
[342738102,1732090325876,-500.0,0.00057808,120]
[342738103,1732090325886,-642.09,0.00057808,3]
[342738104,1732090325896,-1126.69,0.00057808,120]
[342738105,1732090325905,-705.53,0.00057808,120]
[342738106,1732090325915,-500.0,0.00057808,120]
[342738107,1732090325924,-1013.55,0.00057808,120]
[342738108,1732090325934,-1520.14,0.00057808,120]
[342738109,1732090325944,-500.0,0.00057808,120]
[342738110,1732090325955,-500.0,0.00057808,120]
[342738111,1732090325965,-500.0,0.00057808,120]
[342738112,1732090325974,-500.0,0.00057808,21]
[342738113,1732090325984,-500.0,0.00057808,120]
[342738114,1732090325993,-2168.51,0.00057808,120]
[342738115,1732090326003,-500.0,0.00057808,120]
[342738116,1732090326012,-500.0,0.00057808,120]
[342738117,1732090326022,-500.0,0.00057808,120]
[342738118,1732090326032,-500.0,0.00057808,120]
[342738119,1732090326043,-500.0,0.00057808,120]
[342738120,1732090326053,-500.0,0.00057808,120]
[342738121,1732090326062,-500.0,0.00057808,120]
[342738122,1732090326071,-594.32,0.00057808,120]
[342738123,1732090326080,-399.87,0.00057808,120]
[342738124,1732090326089,-500.0,0.00057808,120]
[342738125,1732090326099,-709.11,0.00057808,120]
[342738126,1732090326108,-511.99,0.00057808,120]
[342738127,1732090326118,-500.0,0.00057808,120]
[342738128,1732090326127,-702.33,0.00057808,120]
[342738129,1732090326136,-500.0,0.00057808,120]
[342738130,1732090326145,-202.88,0.00057808,120]
[342738131,1732090326154,-500.0,0.00057808,120]
[342738132,1732090326164,-500.0,0.00057808,120]
[342738133,1732090326173,-500.0,0.00057808,120]
[342738134,1732090326182,-506.96517784,0.00057808,120]
[342738135,1732090326191,-797.68,0.00057808,120]
[342738136,1732090326200,-500.0,0.00057808,120]
[342738137,1732090326210,-500.0,0.00057808,120]
[342738138,1732090326221,-500.0,0.00057808,120]
[342738139,1732090326230,-500.0,0.00057808,120]
[342738140,1732090326239,-500.0,0.00057808,120]
[342738141,1732090326249,-500.0,0.00057808,120]
[342738142,1732090326258,-500.0,0.00057808,120]
[342738143,1732090326267,-500.0,0.00057808,120]
[342738144,1732090326276,-500.0,0.00057808,120]
[342738145,1732090326286,-507.2191376,0.00057808,120]
[342738146,1732090326299,-500.0,0.00057808,120]
[342738147,1732090326311,-500.0,0.00057808,120]
[342738148,1732090326321,-500.0,0.00057808,120]
[342738149,1732090326330,-500.0,0.00057808,120]
[342738150,1732090326339,-150.0,0.00057808,120]
[342738151,1732090326351,-500.0,0.00057808,120]
[342738152,1732090326359,-500.0,0.00057808,120]
[342738153,1732090326369,-500.0,0.00057808,120]
[342738154,1732090326379,-500.0,0.00057808,120]
[342738155,1732090326388,-500.0,0.00057808,120]
[342738156,1732090326398,-531.24497527,0.00057808,120]
[342738157,1732090326407,-500.0,0.00057808,120]
[342738158,1732090326416,-514.31,0.00057808,120]
[342738159,1732090326426,-500.0,0.00057808,120]
[342738160,1732090326434,-226.83,0.00057808,120]
[342738161,1732090326444,-552.07,0.00057808,120]
[342738162,1732090326453,-500.0,0.00057808,120]
[342738163,1732090326462,-500.0,0.00057808,120]
[342738164,1732090326471,-500.0,0.00057808,120]
[342738165,1732090326479,-500.0,0.00057808,120]
[342738166,1732090326489,-500.0,0.00057808,120]
[342738167,1732090326497,-849.65,0.00057808,120]
[342738168,1732090326506,-500.0,0.00057808,120]
[342738169,1732090326515,-500.0,0.00057808,120]
[342738170,1732090326525,-500.0,0.00057808,120]
[342738171,1732090326534,-569.0,0.00057808,120]
[342738172,1732090326546,-579.27352803,0.00057808,120]
[342738173,1732090326555,-500.0,0.00057808,120]
[342738174,1732090326565,-500.0,0.00057808,120]
[342738175,1732090326574,-500.0,0.00057808,120]
[342738176,1732090326583,-700.75,0.00057808,120]
[342738177,1732090326592,-2068.02,0.00057808,120]
[342738178,1732090326601,-500.0,0.00057808,120]
[342738179,1732090326611,-798.52,0.00057808,120]
[342738180,1732090326620,-1516.88,0.00057808,120]
[342738181,1732090326630,-1000.0,0.00057808,120]
[342738182,1732090326639,-982.26,0.00057808,120]
[342738183,1732090326649,-500.0,0.00057808,120]
[342738184,1732090326658,-500.0,0.00057808,120]
[342738185,1732090326667,-500.0,0.00057808,120]
[342738186,1732090326675,-650.76,0.00057808,21]
[342738187,1732090326686,-500.0,0.00057808,120]
[342738188,1732090326695,-500.0,0.00057808,120]
[342738189,1732090326704,-500.0,0.00057808,120]
[342738190,1732090326713,-500.0,0.00057808,30]
[342738191,1732090326723,-998.06,0.00057808,120]
[342738192,1732090326732,-196.40642771,0.00057808,120]
[342738193,1732090326741,-2581.57,0.00057808,120]
[342738194,1732090326750,-259.49805893,0.00057808,120]
[342738195,1732090326759,-635.36,0.00057808,120]
[342738196,1732090326768,-500.0,0.00057808,120]
[342738197,1732090326777,-3061.68,0.00057808,120]
[342738198,1732090326789,-2031.6,0.00057808,120]
[342738199,1732090326799,-500.0,0.00057808,120]
[342738200,1732090326808,-500.0,0.00057808,120]
[342738201,1732090326818,-500.0,0.00057808,120]
[342738202,1732090326828,-3206.56,0.00057808,120]
[342738203,1732090326838,-711.44,0.00057808,120]
[342738204,1732090326848,-500.0,0.00057808,120]
[342738205,1732090326858,-273.23167705,0.00057808,120]
[342738206,1732090326867,-729.82,0.00057808,120]
[342738207,1732090326877,-5192.93,0.00057808,120]
[342738208,1732090326886,-171.70738794,0.00057808,120]
[342738209,1732090326896,-500.0,0.00057808,120]
[342738210,1732090326906,-500.0,0.00057808,120]
[342738211,1732090326915,-261.97781695,0.00057808,120]
[342738212,1732090326926,-500.0,0.00057808,120]
[342738213,1732090326935,-500.0,0.00057808,120]
[342738214,1732090326944,-500.0,0.00057808,120]
[342738215,1732090326954,-500.0,0.00057808,120]
[342738216,1732090326964,-500.0,0.00057808,120]
[342738217,1732090326973,-707.74,0.00057808,120]
[342738218,1732090326983,-500.0,0.00057808,120]
[342738219,1732090326992,-647.87,0.00057808,120]
[342738220,1732090327002,-500.0,0.00057808,120]
[342738221,1732090327012,-500.0,0.00057808,120]
[342738222,1732090327022,-720.2,0.00057808,120]
[342738223,1732090327031,-717.59,0.00057808,120]
[342738224,1732090327044,-500.0,0.00057808,120]
[342738225,1732090327054,-1703.66,0.00057808,120]
[342738226,1732090327064,-508.31,0.00057808,120]
[342738227,1732090327073,-500.0,0.00057808,120]
[342738228,1732090327082,-632.50528894,0.00057808,120]
[342738229,1732090327091,-500.0,0.00057808,120]
[342738230,1732090327101,-500.0,0.00057808,120]
[342738231,1732090327111,-397.09493466,0.00057808,120]
[342738232,1732090327120,-2604.2,0.00057808,120]
[342738233,1732090327129,-500.0,0.00057808,120]
[342738234,1732090327138,-2810.53,0.00057808,120]
[342738235,1732090327147,-500.0,0.00057808,120]
[342738236,1732090327156,-2080.78,0.00057808,120]
[342738237,1732090327165,-500.0,0.00057808,120]
[342738238,1732090327174,-500.22,0.00057808,120]
[342738239,1732090327183,-1137.2,0.00057808,3]
[342738240,1732090327192,-642.24,0.00057808,30]
[342738241,1732090327201,-1301.4,0.00057808,120]
[342738242,1732090327210,-500.0,0.00057808,120]
[342738243,1732090327220,-505.72,0.00057808,120]
[342738244,1732090327229,-500.0,0.00057808,120]
[342738245,1732090327238,-500.0,0.00057808,120]
[342738246,1732090327247,-500.0,0.00057808,120]
[342738247,1732090327257,-500.0,0.00057808,120]
[342738248,1732090327266,-946.93,0.00057808,120]
[342738249,1732090327275,-500.0,0.00057808,120]
[342738250,1732090327283,-500.0,0.00057808,120]
[342738251,1732090327295,-500.0,0.00057808,120]
[342738252,1732090327308,-667.95,0.00057808,120]
[342738253,1732090327318,-500.0,0.00057808,120]
[342738254,1732090327327,-500.0,0.00057808,120]
[342738255,1732090327336,-500.0,0.00057808,120]
[342738256,1732090327345,-500.0,0.00057808,120]
[342738257,1732090327354,-500.0,0.00057808,120]
[342738258,1732090327364,-500.0,0.00057808,120]
[342738259,1732090327373,-500.0,0.00057808,120]
[342738260,1732090327387,-500.0,0.00057808,120]
[342738261,1732090327397,-1100.0,0.00057832,120]
[342738262,1732090327406,-500.0,0.00057893,120]
[342738263,1732090327415,-503.08660465,0.00057893,120]
[342738264,1732090327423,-500.0,0.00057893,120]
[342738265,1732090327432,-500.0,0.00057893,60]
[342738266,1732090327441,-500.0,0.00057893,120]
[342738267,1732090327451,-500.0,0.00057893,120]
[342738268,1732090327459,-500.0,0.00057893,120]
[342738269,1732090327470,-291.95171253,0.000579,36]
[342738270,1732090327479,-900.0,0.00058,61]
[342738271,1732090327489,-15573.0,0.00058,120]
[342738272,1732090327498,-15573.0,0.00058,120]
[342738273,1732090327507,-15573.0,0.00058,120]
[342738274,1732090327516,-500.0,0.00058081,120]
[342738275,1732090327525,-500.0,0.00058081,120]
[342738276,1732090327535,-500.0,0.00058082,120]
[342738277,1732090327547,-500.0,0.00058082,120]
[342738278,1732090327557,-583.63,0.00058082,120]
[342738279,1732090327566,-500.0,0.00058082,120]
[342738280,1732090327575,-500.0,0.00058082,120]
[342738281,1732090327584,-1068.5,0.00058082,120]
[342738282,1732090327593,-598.94,0.00058082,120]
[342738283,1732090327602,-1682.29,0.00058082,120]
[342738284,1732090327612,-500.0,0.00058082,120]
[342738285,1732090327621,-12247.35,0.00058082,120]
[342738286,1732090327630,-1420.1,0.00058082,120]
[342738287,1732090327640,-500.0,0.00058082,120]
[342738288,1732090327649,-1292.82,0.00058082,120]
[342738289,1732090327659,-500.0,0.00058082,120]
[342738290,1732090327669,-1329.44,0.00058082,120]
[342738291,1732090327679,-500.0,0.00058082,120]
[342738292,1732090327688,-500.0,0.00058082,120]
[342738293,1732090327697,-1607.8,0.00058082,120]
[342738294,1732090327706,-500.0,0.00058082,120]
[342738295,1732090327715,-1376.52,0.00058082,120]
[342738296,1732090327724,-500.0,0.00058082,120]
[342738297,1732090327735,-500.0,0.00058082,120]
[342738298,1732090327744,-742.7,0.00058082,20]
[342738299,1732090327755,-843.95,0.00058082,120]
[342738300,1732090327766,-500.0,0.00058082,120]
[342738301,1732090327775,-500.0,0.00058082,120]
[342738302,1732090327785,-500.0,0.00058082,120]
[342738303,1732090327797,-405.2,0.00058082,120]
[342738304,1732090327806,-1244.57,0.00058082,120]
[342738305,1732090327815,-500.0,0.00058082,120]
[342738306,1732090327824,-1316.06,0.00058082,120]
[342738307,1732090327834,-553.01,0.00058082,120]
[342738308,1732090327844,-500.0,0.00058082,120]
[342738309,1732090327853,-721.45,0.00058082,120]
[342738310,1732090327863,-2365.65,0.00058082,120]
[342738311,1732090327871,-526.18,0.00058082,120]
[342738312,1732090327881,-1140.86,0.00058082,120]
[342738313,1732090327890,-1206.39,0.00058082,120]
[342738314,1732090327899,-500.0,0.00058082,120]
[342738315,1732090327907,-851.18,0.00058082,120]
[342738316,1732090327917,-811.24,0.00058082,21]
[342738317,1732090327926,-500.0,0.00058082,120]
[342738318,1732090327935,-578.2,0.00058082,120]
[342738319,1732090327944,-500.0,0.00058082,120]
[342738320,1732090327953,-500.0,0.00058082,120]
[342738321,1732090327963,-500.0,0.00058082,120]
[342738322,1732090327972,-348.37,0.00058082,120]
[342738323,1732090327981,-500.0,0.00058082,120]
[342738324,1732090327991,-1177.91,0.00058082,120]
[342738325,1732090328000,-500.0,0.00058082,120]
[342738326,1732090328009,-3911.81,0.00058082,120]
[342738327,1732090328019,-7513.0,0.00058082,3]
[342738328,1732090328028,-500.0,0.00058082,120]
[342738329,1732090328040,-810.73,0.00058082,120]
[342738330,1732090328050,-618.24,0.00058082,120]
[342738331,1732090328059,-618.5,0.00058082,120]
[342738332,1732090328068,-500.0,0.00058082,120]
[342738333,1732090328077,-500.0,0.00058082,120]
[342738334,1732090328087,-500.0,0.00058082,21]
[342738335,1732090328096,-531.91,0.00058082,60]
[342738336,1732090328106,-703.55,0.00058082,120]
[342738337,1732090328115,-578.53,0.00058082,120]
[342738338,1732090328124,-500.0,0.00058082,120]
[342738339,1732090328134,-500.0,0.00058082,120]
[342738340,1732090328143,-500.0,0.00058082,120]
[342738341,1732090328153,-1133.36,0.00058082,120]
[342738342,1732090328162,-500.0,0.00058082,120]
[342738343,1732090328171,-500.0,0.00058082,120]
[342738344,1732090328180,-646.34,0.00058082,7]
[342738345,1732090328189,-500.0,0.00058082,120]
[342738346,1732090328199,-313.74584553,0.00058082,120]
[342738347,1732090328208,-500.0,0.00058082,120]
[342738348,1732090328218,-1092.33,0.00058082,120]
[342738349,1732090328228,-576.16,0.00058082,120]
[342738350,1732090328238,-500.0,0.00058082,120]
[342738351,1732090328247,-642.09,0.00058082,3]
[342738352,1732090328256,-1126.69,0.00058082,120]
[342738353,1732090328266,-705.53,0.00058082,120]
[342738354,1732090328275,-500.0,0.00058082,120]
[342738355,1732090328286,-1013.55,0.00058082,120]
[342738356,1732090328304,-1520.14,0.00058082,120]
[342738357,1732090328314,-500.0,0.00058082,120]
[342738358,1732090328508,-500.0,0.00058082,120]
[342738359,1732090328519,-500.0,0.00058082,120]
[342738360,1732090328528,-500.0,0.00058082,21]
[342738361,1732090328541,-500.0,0.00058082,120]
[342738362,1732090328550,-2168.51,0.00058082,120]
[342738363,1732090328560,-500.0,0.00058082,120]
[342738364,1732090328570,-500.0,0.00058082,120]
[342738365,1732090328579,-500.0,0.00058082,120]
[342738366,1732090328589,-500.0,0.00058082,120]
[342738367,1732090328598,-500.0,0.00058082,120]
[342738368,1732090328608,-500.0,0.00058082,120]
[342738369,1732090328617,-500.0,0.00058082,120]
[342738370,1732090328627,-594.32,0.00058082,120]
[342738371,1732090328636,-500.0,0.00058082,120]
[342738372,1732090328646,-709.11,0.00058082,120]
[342738373,1732090328655,-511.99,0.00058082,120]
[342738374,1732090328664,-500.0,0.00058082,120]
[342738375,1732090328674,-702.33,0.00058082,120]
[342738376,1732090328684,-500.0,0.00058082,120]
[342738377,1732090328693,-500.0,0.00058082,120]
[342738378,1732090328702,-500.0,0.00058082,120]
[342738379,1732090328711,-405.94201647,0.00058082,120]
[342738380,1732090328720,-797.68,0.00058082,120]
[342738381,1732090328729,-500.0,0.00058082,120]
[342738382,1732090328739,-500.0,0.00058082,120]
[342738383,1732090328748,-500.0,0.00058082,120]
[342738384,1732090328758,-500.0,0.00058082,120]
[342738385,1732090328767,-500.0,0.00058082,120]
[342738386,1732090328776,-500.0,0.00058082,120]
[342738387,1732090328785,-500.0,0.00058082,120]
[342738388,1732090328795,-500.0,0.00058082,120]
[342738389,1732090328804,-500.0,0.00058082,120]
[342738390,1732090328814,-500.0,0.00058082,120]
[342738391,1732090328824,-500.0,0.00058082,120]
[342738392,1732090328834,-500.0,0.00058082,120]
[342738393,1732090328844,-450.5,0.00058082,120]
[342738394,1732090328853,-150.0,0.00058082,120]
[342738395,1732090328863,-500.0,0.00058082,120]
[342738396,1732090328873,-500.0,0.00058082,120]
[342738397,1732090328883,-500.0,0.00058082,120]
[342738398,1732090328893,-500.0,0.00058082,120]
[342738399,1732090328903,-500.0,0.00058082,120]
[342738400,1732090328912,-315.52,0.00058082,120]
[342738401,1732090328922,-514.31,0.00058082,120]
[342738402,1732090328932,-500.0,0.00058082,120]
[342738403,1732090328943,-500.0,0.00058082,120]
[342738404,1732090328952,-500.0,0.00058082,120]
[342738405,1732090328962,-500.0,0.00058082,120]
[342738406,1732090328971,-500.0,0.00058082,120]
[342738407,1732090328982,-500.0,0.00058082,120]
[342738408,1732090328991,-849.65,0.00058082,120]
[342738409,1732090329002,-500.0,0.00058082,120]
[342738410,1732090329011,-500.0,0.00058082,120]
[342738411,1732090329022,-500.0,0.00058082,120]
[342738412,1732090329033,-569.0,0.00058082,120]
[342738413,1732090329045,-500.0,0.00058082,120]
[342738414,1732090329055,-500.0,0.00058082,120]
[342738415,1732090329065,-500.0,0.00058082,120]
[342738416,1732090329075,-700.75,0.00058082,120]
[342738417,1732090329084,-2068.02,0.00058082,120]
[342738418,1732090329094,-584.95825227,0.00058082,120]
[342738419,1732090329104,-798.52,0.00058082,120]
[342738420,1732090329114,-1516.88,0.00058082,120]
[342738421,1732090329123,-1000.0,0.00058082,120]
[342738422,1732090329133,-982.26,0.00058082,120]
[342738423,1732090329142,-500.0,0.00058082,120]
[342738424,1732090329151,-500.0,0.00058082,120]
[342738425,1732090329161,-500.0,0.00058082,120]
[342738426,1732090329170,-650.76,0.00058082,21]
[342738427,1732090329179,-500.0,0.00058082,120]
[342738428,1732090329189,-500.0,0.00058082,120]
[342738429,1732090329198,-500.0,0.00058082,120]
[342738430,1732090329207,-500.0,0.00058082,30]
[342738431,1732090329216,-998.06,0.00058082,120]
[342738432,1732090329225,-2581.57,0.00058082,120]
[342738433,1732090329235,-635.36,0.00058082,120]
[342738434,1732090329244,-500.0,0.00058082,120]
[342738435,1732090329253,-3061.68,0.00058082,120]
[342738436,1732090329263,-2031.6,0.00058082,120]
[342738437,1732090329272,-500.0,0.00058082,120]
[342738438,1732090329281,-500.0,0.00058082,120]
[342738439,1732090329292,-500.0,0.00058082,120]
[342738440,1732090329302,-3206.56,0.00058082,120]
[342738441,1732090329313,-711.44,0.00058082,120]
[342738442,1732090329322,-500.0,0.00058082,120]
[342738443,1732090329331,-729.82,0.00058082,120]
[342738444,1732090329340,-5192.93,0.00058082,120]
[342738445,1732090329351,-500.0,0.00058082,120]
[342738446,1732090329360,-434.89366035,0.00058082,120]
[342738447,1732090329369,-500.0,0.00058082,120]
[342738448,1732090329380,-500.0,0.00058082,120]
[342738449,1732090329390,-500.0,0.00058082,120]
[342738450,1732090329400,-151.82132433,0.00058082,120]
[342738451,1732090329410,-500.0,0.00058082,120]
[342738452,1732090329421,-707.74,0.00058082,120]
[342738453,1732090329430,-500.0,0.00058082,120]
[342738454,1732090329440,-647.87,0.00058082,120]
[342738455,1732090329449,-440.18389963,0.00058082,120]
[342738456,1732090329459,-500.0,0.00058082,120]
[342738457,1732090329469,-720.2,0.00058082,120]
[342738458,1732090329479,-717.59,0.00058082,120]
[342738459,1732090329487,-500.0,0.00058082,120]
[342738460,1732090329497,-1703.66,0.00058082,120]
[342738461,1732090329506,-508.31,0.00058082,120]
[342738462,1732090329516,-500.0,0.00058082,120]
[342738463,1732090329525,-195.34561286,0.00058082,120]
[342738464,1732090329534,-500.0,0.00058082,120]
[342738465,1732090329546,-2604.2,0.00058082,120]
[342738466,1732090329555,-500.0,0.00058082,120]
[342738467,1732090329564,-2810.53,0.00058082,120]
[342738468,1732090329574,-500.0,0.00058082,120]
[342738469,1732090329583,-2080.78,0.00058082,120]
[342738470,1732090329593,-324.97235663,0.00058082,120]
[342738471,1732090329602,-500.22,0.00058082,120]
[342738472,1732090329611,-1137.2,0.00058082,3]
[342738473,1732090329621,-642.24,0.00058082,30]
[342738474,1732090329630,-1301.4,0.00058082,120]
[342738475,1732090329639,-500.0,0.00058082,120]
[342738476,1732090329648,-505.72,0.00058082,120]
[342738477,1732090329657,-500.0,0.00058082,120]
[342738478,1732090329667,-500.0,0.00058082,120]
[342738479,1732090329676,-405.0041406,0.00058082,120]
[342738480,1732090329685,-500.0,0.00058082,120]
[342738481,1732090329694,-946.93,0.00058082,120]
[342738482,1732090329703,-245.80771849,0.00058082,120]
[342738483,1732090329712,-354.63018235,0.00058082,120]
[342738484,1732090329721,-500.0,0.00058082,120]
[342738485,1732090329730,-667.95,0.00058082,120]
[342738486,1732090329739,-500.0,0.00058082,120]
[342738487,1732090329748,-500.0,0.00058082,120]
[342738488,1732090329758,-500.0,0.00058082,120]
[342738489,1732090329767,-500.0,0.00058082,120]
[342738490,1732090329776,-500.0,0.00058082,120]
[342738491,1732090329786,-500.0,0.00058082,120]
[342738492,1732090329797,-500.0,0.00058082,120]
[342738493,1732090329806,-313.88300097,0.00058082,120]
[342738494,1732090329816,-2400.0,0.00058106,120]
[342738495,1732090329825,-500.0,0.00058106,120]
[342738496,1732090329834,-500.0,0.00058167,120]
[342738497,1732090329843,-500.0,0.00058167,120]
[342738498,1732090329853,-500.0,0.00058167,60]
[342738499,1732090329863,-500.0,0.00058167,120]
[342738500,1732090329872,-500.0,0.00058167,120]
[342738501,1732090329881,-500.0,0.00058167,120]
[342738502,1732090329890,-160.864485,0.0005825,120]
[342738503,1732090329900,-1322.0,0.00058342,30]
[342738504,1732090329909,-500.0,0.00058355,120]
[342738505,1732090329918,-500.0,0.00058355,120]
[342738506,1732090329927,-500.0,0.00058356,120]
[342738507,1732090329936,-500.0,0.00058356,120]
[342738508,1732090329946,-583.63,0.00058356,120]
[342738509,1732090329955,-500.0,0.00058356,120]
[342738510,1732090329964,-161.25,0.00058356,120]
[342738511,1732090329974,-1068.5,0.00058356,120]
[342738512,1732090329984,-598.94,0.00058356,120]
[342738513,1732090329994,-1682.29,0.00058356,120]
[342738514,1732090330004,-500.0,0.00058356,120]
[342738515,1732090330014,-12247.35,0.00058356,120]
[342738516,1732090330023,-1420.1,0.00058356,120]
[342738517,1732090330034,-500.0,0.00058356,120]
[342738518,1732090330045,-1292.82,0.00058356,120]
[342738519,1732090330054,-188.6,0.00058356,120]
[342738520,1732090330063,-1329.44,0.00058356,120]
[342738521,1732090330072,-500.0,0.00058356,120]
[342738522,1732090330081,-500.0,0.00058356,120]
[342738523,1732090330091,-1607.8,0.00058356,120]
[342738524,1732090330100,-500.0,0.00058356,120]
[342738525,1732090330109,-1376.52,0.00058356,120]
[342738526,1732090330118,-500.0,0.00058356,120]
[342738527,1732090330128,-500.0,0.00058356,120]
[342738528,1732090330137,-742.7,0.00058356,20]
[342738529,1732090330146,-843.95,0.00058356,120]
[342738530,1732090330155,-570.77927322,0.00058356,120]
[342738531,1732090330164,-500.0,0.00058356,120]
[342738532,1732090330173,-1244.57,0.00058356,120]
[342738533,1732090330181,-500.0,0.00058356,120]
[342738534,1732090330191,-1316.06,0.00058356,120]
[342738535,1732090330199,-553.01,0.00058356,120]
[342738536,1732090330209,-500.0,0.00058356,120]
[342738537,1732090330218,-721.45,0.00058356,120]
[342738538,1732090330227,-2365.65,0.00058356,120]
[342738539,1732090330236,-526.18,0.00058356,120]
[342738540,1732090330246,-1140.86,0.00058356,120]
[342738541,1732090330256,-1206.39,0.00058356,120]
[342738542,1732090330265,-500.0,0.00058356,120]
[342738543,1732090330274,-851.18,0.00058356,120]
[342738544,1732090330283,-811.24,0.00058356,21]
[342738545,1732090330294,-611.26,0.00058356,120]
[342738546,1732090330306,-500.0,0.00058356,120]
[342738547,1732090330316,-500.0,0.00058356,120]
[342738548,1732090330327,-500.0,0.00058356,120]
[342738549,1732090330337,-500.0,0.00058356,120]
[342738550,1732090330347,-1177.91,0.00058356,120]
[342738551,1732090330358,-500.0,0.00058356,120]
[342738552,1732090330367,-3911.81,0.00058356,120]
[342738553,1732090330377,-7513.0,0.00058356,3]
[342738554,1732090330387,-500.0,0.00058356,120]
[342738555,1732090330398,-810.73,0.00058356,120]
[342738556,1732090330408,-618.5,0.00058356,120]
[342738557,1732090330417,-500.0,0.00058356,120]
[342738558,1732090330427,-500.0,0.00058356,120]